Cogmind - Beta 15 @@@ ROGUE MODE // 2025.09.06 @ 14:40:34 Player: odium reigns Result: Destroyed by 86-ZUY(R) with Subdweller Machine Gun Performance ------------- Evolutions (0) 0 Regions Visited (3) 600 Robots Destroyed (39) 195 Value Destroyed (666) 666 Prototype IDs (2) 40 Alien Tech Used (0) 0 Bonus (0) 0 TOTAL SCORE: 1501 Bonus ------- None Cogmind --------- Core Integrity 0/250 Matter 270/300 Energy 200/200 System Corruption 1% Temperature Cool (0) Movement Rolling (120) Ox1 Location -10/Subcaves Parts ------- > --- POWER (1) -------- Subdweller Power Source > --- PROPULSION (2) --- Light Treads Subdweller Monowheel > --- UTILITY (2) ------ Medium Storage Unit Targeting Computer > --- WEAPON (2) ------- Autogun Subdweller Machine Gun > --- INVENTORY (10) --- Light Treads Light Treads Subdweller Optics Signal Interpreter Beam Rifle Heavy Assault Rifle Autogun Autogun Battle Cannon Mining Claw Peak State ------------ > --- POWER ------------ Ion Engine > --- PROPULSION ------- Light Treads Light Treads > --- UTILITY ---------- Medium Storage Unit Sensor Array > --- WEAPON ----------- Improved Assault Rifle Improved Assault Rifle > --- INVENTORY -------- Light Ion Engine Light Treads Light Treads Light Treads Light Treads Signal Interpreter Assault Rifle Light Assault Rifle Grenade Launcher Mining Claw [Rating: 12] Favorites ----------- Power Ion Engine Engine Ion Engine Propulsion Light Treads Treads Light Treads Leg Aluminum Leg Wheel Subdweller Monowheel Utility Medium Storage Unit Device Sensor Array Storage Medium Storage Unit Processor Targeting Computer Weapon Improved Assault Rifle Energy Gun Beam Rifle Ballistic Gun Improved Assault Rifle Slashing Weapon Mining Claw Build | -11 -10 -10 -10 ------- Run | Yrd Mat Min Sub Slots Evolved . | . . . . Power . | . . . . Propulsion . | . . . . Utility . | . . . . Weapon . | . . . . Parts Attached 27 | 6 12 5 4 Power 4 | 1 1 1 1 Engine 4 | 1 1 1 1 Core . | . . . . Reactor . | . . . . Propulsion 9 | 2 5 . 2 Treads 6 | 2 3 . 1 Leg 2 | . 2 . . Wheel 1 | . . . 1 Hover . | . . . . Flight . | . . . . Utility 6 | 1 3 2 . Device 3 | . 2 1 . Storage 2 | 1 1 . . Processor 1 | . . 1 . Hackware . | . . . . Protection . | . . . . Artifact . | . . . . Weapon 8 | 2 3 2 1 Energy Gun 1 | . . 1 . Energy Cannon . | . . . . Ballistic Gun 6 | 2 2 1 1 Ballistic Cannon . | . . . . Launcher . | . . . . Special Weapon . | . . . . Impact Weapon . | . . . . Slashing Weapon 1 | . 1 . . Piercing Weapon . | . . . . Special Melee Weapon . | . . . . Unidentified Prototypes 1 | . 1 . . Parts Lost 6 | . 2 3 1 Power 1 | . . 1 . Propulsion 2 | . 1 . 1 Utility 2 | . 1 1 . Weapon 1 | . . 1 . Highest Loss Streak 2 | . 2 2 1 To Critical Strikes 1 | . . . 1 Average Backups 8 | 4 8 8 9 Power . | . . . . Propulsion 2 | 1 3 3 2 Utility 1 | . . 1 1 Weapon 4 | 1 3 4 6 Tool/Special . | . . . . Unused Backups 17 | . 8 . 9 Power 1 | . 1 . . Propulsion 4 | . 2 . 2 Utility 3 | . 1 . 2 Weapon 9 | . 4 . 5 Tool/Special . | . . . . Average Slot Usage (%) 91 | . 91 91 92 Engine 13 | . 14 13 14 Treads 24 | . 25 28 20 Leg 1 | . 2 . . Device 4 | . 5 3 . Storage 14 | . 14 14 14 Processor 3 | . . 3 14 Energy Gun 2 | . . 3 7 Ballistic Gun 25 | . 27 24 20 Peak Build Rating 12 | 6 12 12 12 Average Rating 9 | 4 9 10 10 On Entrance 7 | . 6 11 11 Naked Turns . | . . . . Heaviest Build 24 | 12 22 23 24 Greatest Support 40 | 40 40 40 40 Greatest Overweight (x) 1 | . 1 . 1 Average Overweight (x) . | . . . . Largest Inventory Capacity 10 | 8 10 10 10 Average Capacity 9 | 7 9 10 10 Most Carried 10 | 6 10 10 10 Average Carried 8 | 4 8 8 9 Final Capacity 10 | 8 10 10 10 Final Carried 10 | 5 9 10 10 Class Distribution -------------------- 100% | Mutant Dominant Class ---------------- Mutant | -10/Materials Mutant | -10/Mines Mutant | -10/Subcaves Resources | -11 -10 -10 -10 ----------- Run | Yrd Mat Min Sub Matter Collected 1154 | 332 471 224 127 Remotely . | . . . . Salvage Created 1309 | 195 534 394 186 Parts 88 | 15 41 17 15 Haulers Intercepted 1 | . 1 . . Recyclers Shooed 3 | . 2 1 . Parts Field Recycled . | . . . . Retrieved Matter . | . . . . Parts Self-Destructed 7 | . . . 7 Prevented . | . . . . Kills | -11 -10 -10 -10 ------- Run | Yrd Mat Min Sub Combat Hostiles Destroyed 21 | . 10 5 6 Guns 21 | . 10 5 6 Classes Destroyed 11 | 3 5 2 1 Worker 3 | 2 1 . . Builder 1 | . . 1 . Tunneler 5 | 4 1 . . Hauler 1 | . 1 . . Recycler 5 | 1 2 2 . Operator 1 | . 1 . . Watcher 2 | . 2 . . Swarmer 10 | . 8 . 2 Grunt 5 | . 2 3 . Sentry 2 | . . 2 . Subdweller 4 | . . . 4 Best Kill Streak 6 | 4 4 6 2 Combat Bots Only 3 | . 3 3 2 Max Kills in Single Turn 2 | 1 2 1 2 Gunslinging 1 | . 1 . 1 Exploded . | . . . . Melee . | . . . . Uniques/NPCs Destroyed . | . . . . Combat | -11 -10 -10 -10 -------- Run | Yrd Mat Min Sub Hostile Shots Fired 129 | . 58 35 36 Missed 41 | . 15 13 13 Hits 88 | . 43 22 23 Projectile 88 | . 43 22 23 AOE 1 | . . . 1 Critical Strikes 3 | . 2 . 1 Damage Taken 1201 | . 517 284 400 Core 252 | . 89 34 129 Absorbed by Shields . | . . . . Core Remaining (%) 100 | 100 . . . Volleys Fired 111 | 12 60 20 19 Largest 2 | 2 2 2 2 Hottest 79 | 40 46 46 79 Shots Fired 223 | 24 121 40 38 Gun 223 | 24 121 40 38 Cannon . | . . . . Launcher . | . . . . Special . | . . . . Kinetic 214 | 24 121 40 29 Thermal 9 | . . . 9 Explosive . | . . . . Electromagnetic . | . . . . Robot Hit Streak 10 | 9 9 7 10 Robot Miss Streak 4 | 2 4 3 3 Penetration Max . | . . . . Secondary Targets 4 | . 2 . 2 Max Gunslinging Chain 1 | . 1 . 1 Shots Hit Robots 139 | 16 67 29 27 Core Hits 57 | 8 26 12 11 Critical Kills 1 | . . . 1 Critical Parts Destroyed 2 | . 2 . . Critical Strikes 4 | . 2 . 2 Burn 1 | . . . 1 Destroy 3 | . 2 . 1 Melee Attacks 1 | . 1 . . Impact . | . . . . Slashing 1 | . 1 . . Piercing . | . . . . Sneak Attacks . | . . . . Combat Hostiles . | . . . . Follow-up Attacks . | . . . . Damage Inflicted 2078 | 200 1004 462 412 Guns 2054 | 200 980 462 412 Cannons . | . . . . Explosions . | . . . . Melee . | . . . . Ramming 24 | . 24 . . Kinetic 1954 | 200 980 462 312 Thermal 100 | . . . 100 Explosive . | . . . . Electromagnetic . | . . . . Impact . | . . . . Slashing . | . . . . Piercing . | . . . . Highest Corruption 1 | . 1 1 1 Average Corruption 1 | . 1 1 1 Corruption Purged . | . . . . Corruption Blocked . | . . . . Effects 21 | . 12 2 7 Message Errors 5 | . 4 . 1 Matter Fused 4 | . 2 . 2 Heat Flow Errors 4 | . 2 1 1 Energy Discharges 3 | . . 1 2 Data Loss (minor) 1 | . 1 . . Data Loss (major) 1 | . . . 1 Misfires 2 | . 2 . . Weapon Failures 1 | . 1 . . Overload Shots . | . . . . Overflow Damage . | . . . . Projectiles . | . . . . Explosions . | . . . . Melee . | . . . . Knockbacks . | . . . . Impact . | . . . . Kinetic . | . . . . Secondary . | . . . . Self-Inflicted Damage . | . . . . Shots . | . . . . Rammed 4 | . 4 . . Targets Rammed 4 | . 4 . . Kicked . | . . . . Crushed . | . . . . Highest Temperature 257 | 6 148 111 257 Average Temperature 50 | 6 50 16 142 Received Heat Transfer 420 | . 258 138 24 Siege Activations . | . . . . Martial Activations . | . . . . Shielding Activations . | . . . . Robots Disrupted . | . . . . Combat Hostiles . | . . . . Robots Corrupted . | . . . . Combat Hostiles . | . . . . Parts Fried . | . . . . Impact Corruptions . | . . . . Robots Melted . | . . . . Combat Hostiles . | . . . . Parts Melted 1 | . . . 1 Heat Transferred 333 | . . . 333 Parts Sabotaged . | . . . . Parts Stolen . | . . . . Parts Stripped . | . . . . Power Chain Reactions . | . . . . Alert | -11 -10 -10 -10 ------- Run | Yrd Mat Min Sub Maximum Alert Level . | . . . . Low Security (%) 100 | 100 100 100 . Level 1 . | . . . . Level 2 . | . . . . Level 3 . | . . . . Level 4 . | . . . . Level 5 . | . . . . High Security . | . . . . Max Security . | . . . . Peak Influence 101 | 15 101 70 . Initial . | . . . . Average 23 | 2 27 18 . Influence Increases 547 | 35 337 125 50 Destroy 0b10 Robot/C 340 | . 200 100 40 Destroy 0b10 Robot/NC 90 | 35 40 15 . Destroy Leader 56 | . 36 10 10 Successful Hack 14 | . 14 . . Disable Machine 15 | . 15 . . Destroy Structure 2 | . 2 . . Lose Combat Pursuer 30 | . 30 . . Influence Decreases 547 | 35 337 125 50 Time Decay 517 | 35 317 115 50 Lost Part 30 | . 20 10 . Squads Dispatched 2 | . 2 . . Investigation . | . . . . Extermination . | . . . . Reinforcement 2 | . 2 . . Assault . | . . . . Garrison . | . . . . Intercept . | . . . . Searches Triggered . | . . . . Construction Impeded . | . . . . Haulers Reinforced . | . . . . Active Scanning Responses . | . . . . Cargo Convoy Interrupts . | . . . . Stealth | -11 -10 -10 -10 --------- Run | Yrd Mat Min Sub Distress Signals . | . . . . Communications Jammed . | . . . . Distress Signals . | . . . . Times Spotted 37 | . 23 5 9 Peak Tracking Total 4 | . 4 3 3 Tactical Retreats 2 | . 2 . . Traps | -11 -10 -10 -10 ------- Run | Yrd Mat Min Sub Traps Triggered 1 | . 1 . . Indirectly . | . . . . Trap Hack Attempts . | . . . . Triggered . | . . . . Disarmed . | . . . . Reprogrammed . | . . . . Reused . | . . . . Traps Extracted . | . . . . Installed . | . . . . Triggered . | . . . . Machines | -11 -10 -10 -10 ---------- Run | Yrd Mat Min Sub Machines Disabled 1 | . 1 . . Max in Single Turn 1 | . 1 . . Machines Repaired . | . . . . Machines Dismantled . | . . . . Machines Sabotaged . | . . . . Overloaded Fab Kills . | . . . . Hacking | -11 -10 -10 -10 --------- Run | Yrd Mat Min Sub Machines Accessed 5 | . 4 1 . Terminals 5 | . 4 1 . Fabricators . | . . . . Repair Stations . | . . . . Recycling Units . | . . . . Scanalyzers . | . . . . Garrison Access . | . . . . Total Hacks 12 | . 10 2 . Successful 8 | . 7 1 . Failed 4 | . 3 1 . Catastrophic . | . . . . Database Lockouts . | . . . . Manual . | . . . . Terminals 12 | . 10 2 . Fabricators . | . . . . Repair Stations . | . . . . Recycling Units . | . . . . Scanalyzers . | . . . . Garrison Access . | . . . . Terminal Hacks 8 | . 7 1 . Prototype ID Bank 1 | . 1 . . Emergency Access Points 1 | . 1 . . Locate Traps 1 | . 1 . . Dispatch Records 1 | . . 1 . Transport Status 2 | . 2 . . Hauler Manifests 1 | . 1 . . Zone Layout 1 | . 1 . . Fabricator Hacks . | . . . . Repair Station Hacks . | . . . . Recycling Unit Hacks . | . . . . Scanalyzer . | . . . . Garrison Access Hacks . | . . . . Unauthorized Hacks . | . . . . Terminals . | . . . . Fabricators . | . . . . Repair Stations . | . . . . Recycling Units . | . . . . Scanalyzers . | . . . . Garrison Access . | . . . . Data Cores Recovered . | . . . . Used . | . . . . Hacking Detections 3 | . 2 1 . Full Trace Events . | . . . . Feedback Events . | . . . . Feedback Blocked . | . . . . Robot Schematics Acquired . | . . . . Robots Built . | . . . . Authchips . | . . . . Time . | . . . . Total Robot Build Rating . | . . . . Part Schematics Acquired . | . . . . Parts Built . | . . . . Authchips . | . . . . Time . | . . . . Total Part Build Rating . | . . . . Parts Repaired . | . . . . Time . | . . . . Parts Recycled . | . . . . Recycled Matter . | . . . . Retrieved Matter . | . . . . Retrieved Components . | . . . . Parts Scanalyzed . | . . . . Part Schematics Acquired . | . . . . Parts Damaged . | . . . . Bothacking | -11 -10 -10 -10 ------------ Run | Yrd Mat Min Sub Used RIF Installer . | . . . . Robots Hacked . | . . . . Non-combat . | . . . . Combat . | . . . . Robot Hacks Applied . | . . . . Relay Couplers Released . | . . . . Fabnet Peak Effective % . | . . . . Robots Rewired . | . . . . Allies Hacked . | . . . . Hacks Repelled . | . . . . Allies | -11 -10 -10 -10 -------- Run | Yrd Mat Min Sub Total Allies . | . . . . Largest Group . | . . . . Highest-Rated Group . | . . . . Highest-Rated Ally . | . . . . Total Orders . | . . . . Ally Attacks . | . . . . Total Damage . | . . . . Kills . | . . . . Allies Corrupted . | . . . . Allies Melted . | . . . . Intel | -11 -10 -10 -10 ------- Run | Yrd Mat Min Sub Active Infowar (turns) 627 | . 527 100 . Sensors 479 | . 379 100 . Terrain 148 | . 148 . . Robot Analysis Total . | . . . . Derelict Logs Recovered . | . . . . Drone Launches . | . . . . Drone Recoveries . | . . . . Exploration | -11 -10 -10 -10 ------------- Run | Yrd Mat Min Sub Turns Passed 2221 | 125 1239 376 481 Spaces Moved 1108 | 58 639 194 217 Core 17 | 17 . . . Treads 1033 | 41 585 194 213 Legs 54 | . 54 . . Wheels 4 | . . . 4 Hover . | . . . . Flight . | . . . . Fastest Speed 50 | 50 120 160 120 Average Speed 162 | 127 157 160 191 Slowest Speed 240 | 160 240 160 240 Overloaded Moves . | . . . . Propulsion Burnouts . | . . . . Robots Hopped . | . . . . Potential Cave-ins . | . . . . Cave-ins Triggered . | . . . . Exploration Rate (%) 36 | 4 82 44 17 Regions Visited 3 Branch Regions 2 Pre-discovered Areas . | . . . . Known Exits Taken . | . . . . Unknown Exits Taken 3 | 1 1 1 . Scrap Searched 1 | . . 1 . Spaces Dug . | . . . . Terrain Destroyed . | . . . . Melee . | . . . . Projectile . | . . . . AOE . | . . . . Terrain Rammed . | . . . . Walls Destroyed . | . . . . Machines Disabled . | . . . . Actions | -11 -10 -10 -10 --------- Run | Yrd Mat Min Sub Total 1311 | 85 755 222 249 Wait 3 | . . . 3 Move 1105 | 57 638 193 217 Hop . | . . . . Pick Up 36 | 10 21 3 2 Fast Attach 9 | 1 3 3 2 Attach 10 | 5 2 2 1 Detach . | . . . . Swap 9 | . 8 . 1 Drop 23 | . 18 1 4 Fire 111 | 12 60 20 19 Melee 1 | . 1 . . Ram . | . . . . Kick . | . . . . Crush 4 | . 4 . . Escape Stasis . | . . . . Rewire . | . . . . Trap . | . . . . Miscellaneous . | . . . . Route ------- -11/Scrapyard -10/Materials (discovered 3 exits: [*Mat x2] / *Min) -10/Mines -10/Subcaves History --------- Turn | Location | Event 3 | -11/Scrapyard | Discovered new exit (range 15) 126 | -11/Scrapyard | Entered Materials 309 | -10/Materials | Build established: Mutant 866 | -10/Materials | Discovered new exit (range 5) 985 | -10/Materials | Discovered new exit (range 9) 1082 | -10/Materials | Discovered new exit (range 11) 1365 | -10/Materials | Entered Mines 1728 | -10/Mines | Discovered new exit (range 10) 1741 | -10/Mines | Entered Subcaves 1763 | -10/Subcaves | A swath of the cavern ceiling suddenly collapsed 1982 | -10/Subcaves | Core integrity fell below 50% 2070 | -10/Subcaves | A swath of the cavern ceiling suddenly collapsed 2197 | -10/Subcaves | Core integrity fell below 20% 2222 | -10/Subcaves | Destroyed by 86-ZUY(R) with Subdweller Machine Gun Last Messages --------------- Acquired Sub. Optics. Subatomizers dissect the Sub. Monowheel. System corrupted: Substantial component data lost. A swath of the cavern ceiling suddenly collapses. System corrupted: Matter fused (-6). DTWMUGZIA5: WA3R22SV PPVCT5PH FO-HCZ(R) suffers critical hit (Destroy). FO-HCZ(R) destroyed. Acquired 34 matter. Dropped Imp. Ion Engine. Acquired 3 matter. CV-G1L(R) destroyed. Switching to secondary target: RS-5GR(R). RS-5GR(R) destroyed. Dropped Lgt. Treads. Acquired Sub. Monowheel. Dropped Autogun. Acquired Battle Cannon. Acquired 29 matter. Subatomizers dissect the Sub. Optics. Map ----- +----------------------------------------------------+ | ??????????????????????????????????#"" ##????? | | ?????????????????????????????????#""#" #????? | | ?????????????????????????????????##""## #????? | | ???????????????????????????????###""## #????? | | ??????????????????????????????##"#""### #????? | | ??????????????????????????????#"""#"#?#" #????? | | ??????????????????????????????#"##"###### #????? | | ?????????????????????????#"#??# ""#"##"### ##????? | | ?????????????????????????#""##"#""##"##"# ##?????? | | ??????????????????????????##""##"###"""# ##??????? | | ??????????????????????????#""#""#####"""##???????? | | ????????????????????? ????#"""#""#?### #????????? | | ????????????????????# R ???##"##"##??# ##????????? | | ????????????????????# ????###"##"??###?????????? | | ????????????????????# ??????##"#"#####?????????? | | ?????????????????##?# ??????##"## # #?????????? | | ?????????????????# ## ??????# " ##?????????? | | ?????????????????? ?????## #### #?????????? | | ??????????????????? ??????###?# ##?????????? | | ????????????????????# ??????????## #??????????? | | ?????????????????????# ?????###??## ##?????????? | | ?????????????????????## ?##### #### #?????????? | | ????????????????????##=& ##;;;" !### ##?????????? | | ?????????????????## #!%* &;& * | #??????????? | | ?????????????????# ! *% & ! #??????????? | | ?????????????????# # # @![= "# ##??????????? | | ???????????????????????###; ####???????????? | | ?????????????????????????#; ;;##??????????????? | | ????????????????????????#" ;; #???????????????? | | ????????????????????????# ; ##???????????????? | | ????????????????????????#" ####????????????????? | | ????????????????????????######???????????????????? | | ?????????????????????????????????????????????????? | | ?????????????????????????????????????????????????? | | ?????????????????????????????????????????????????? | | ?????????????????????????????????????????????????? | | ?????????????????????????????????????????????????? | | ?????????????????????????????????????????????????? | | ?????????????????????????????????????????????????? | | ?????????????????????????????????????????????????? | | ?????????????????????????????????????????????????? | | ?????????????????????????????????????????????????? | | ?????????????????????????????????????????????????? | | ?????????????????????????????????????????????????? | | ?????????????????????????????????????????????????? | | ?????????????????????????????????????????????????? | | | | | | | | | +----------------------------------------------------+ Best States ------------- Heat Dissipation 25 Energy Generation 15 Energy Capacity 265 Matter Stores 300 Matter Capacity 300 Sight Range 16 Robot Scan Range 14 Terrain Scan Range 16 Terrain Scan Density 10 Evasion (%) 55 Targeting Accuracy 5 Recoil Reduction 2 Item Schematics ----------------- None Robot Schematics ------------------ None Fabricated ------------ Nothing Repaired ---------- Nothing Alien Tech Used ----------------- None Achievements -------------- None Challenges ------------ None Game ------ Seed DroneNeutrinoMatterbank Manual? 0 Play Time 00:19:30 Cumulative 51.0 hours Start 2025.09.06 @ 03:36:07 End 2025.09.06 @ 14:40:34 Sessions 1 Manual Loads 0 Difficulty Rogue Special Mode None Game No. 37 Rogue 37 Adventurer 0 Explorer 0 Win Type - Total 0 Types 0/0/0/0/0/0/0/0/0/0 Lore% 19 Gallery% 40 Achievement% 32 Wizard Run 0 Options --------- Layout 0 ASCII 0 Keyboard 0 Movement Arrows Keybinds 0 Fullscreen 1 Font 12/Smallcaps Map View 38x28 Zoom Use 95% Tactical HUD 0 Map Filters NONE Filters NONE Steam SD RUN: 70f9a4c6-1162-4f88-b654-aadb6fff4e51